[Event "*** SCC Grand Prix: Titled Tuesday Blitz"]
[Site "Chess.com"]
[Date "2020.09.29"]
[Round "10"]
[White "tmr88"]
[Black "Evachess2006"]
[Result "1-0"]
[WhiteElo "2089"]
[BlackElo "1628"]
[TimeControl "180+1"]
[EndTime "11:57:05 PDT"]
[Termination "tmr88 won on time"]

1. e4 {[%clk 0:03:00.9]} 1... e5 {[%clk 0:02:49.2]} 2. Nf3 {[%clk 0:03:00.6]}
2... Nc6 {[%clk 0:01:38.9]} 3. Bb5 {[%clk 0:02:58.4]} 3... a6 {[%clk 0:01:34.4]}
4. Ba4 {[%clk 0:02:58.8]} 4... Nf6 {[%clk 0:01:30.3]} 5. O-O {[%clk 0:02:59.3]}
5... b5 {[%clk 0:01:28.8]} 6. Bb3 {[%clk 0:02:59]} 6... Be7 {[%clk 0:01:24.9]}
7. Re1 {[%clk 0:02:59.3]} 7... O-O {[%clk 0:01:24.5]} 8. h3 {[%clk 0:02:54.9]}
8... d5 {[%clk 0:01:20.4]} 9. exd5 {[%clk 0:02:48.2]} 9... Nxd5 {[%clk
0:01:21.3]} 10. Nxe5 {[%clk 0:02:48.2]} 10... Nxe5 {[%clk 0:01:22]} 11. Rxe5
{[%clk 0:02:48.2]} 11... c6 {[%clk 0:01:21.2]} 12. d4 {[%clk 0:02:39.6]} 12...
Bd6 {[%clk 0:01:20.1]} 13. Re1 {[%clk 0:02:38.4]} 13... Qf6 {[%clk 0:01:13.1]}
14. Bxd5 {[%clk 0:02:04.9]} 14... cxd5 {[%clk 0:01:14]} 15. a4 {[%clk
0:02:03.4]} 15... Qg6 {[%clk 0:00:58.7]} 16. Qf3 {[%clk 0:02:00.7]} 16... Be6
{[%clk 0:00:20.6]} 17. c3 {[%clk 0:01:35.4]} 17... bxa4 {[%clk 0:00:14.5]} 18.
Nd2 {[%clk 0:01:24.4]} 18... Bd7 {[%clk 0:00:08.6]} 19. Nf1 {[%clk 0:01:16.7]}
19... Bc6 {[%clk 0:00:08.2]} 20. Ng3 {[%clk 0:00:59]} 20... Bxg3 {[%clk
0:00:06.3]} 21. fxg3 {[%clk 0:00:54.3]} 21... Rfe8 {[%clk 0:00:04.8]} 22. Bf4
{[%clk 0:00:53.7]} 22... Qf6 {[%clk 0:00:03.2]} 23. Be5 {[%clk 0:00:44]} 23...
Qg6 {[%clk 0:00:03.6]} 24. Rf1 {[%clk 0:00:39.9]} 24... Re6 {[%clk 0:00:03.7]}
25. g4 {[%clk 0:00:33.7]} 25... f6 {[%clk 0:00:04.2]} 26. Bg3 {[%clk 0:00:32.1]}
26... Qf7 {[%clk 0:00:05.1]} 27. Rae1 {[%clk 0:00:30.7]} 27... Rf8 {[%clk
0:00:06]} 28. Rxe6 {[%clk 0:00:29.2]} 28... Qxe6 {[%clk 0:00:06.9]} 29. Qf5
{[%clk 0:00:27.3]} 29... Qd7 {[%clk 0:00:07.8]} 30. Re1 {[%clk 0:00:22.2]} 30...
Qxf5 {[%clk 0:00:07.4]} 31. gxf5 {[%clk 0:00:21.6]} 31... Re8 {[%clk 0:00:07.9]}
32. Rxe8+ {[%clk 0:00:20.2]} 32... Bxe8 {[%clk 0:00:08.8]} 33. Bd6 {[%clk
0:00:20.4]} 33... Kf7 {[%clk 0:00:08.7]} 34. Kf2 {[%clk 0:00:20.5]} 34... Bb5
{[%clk 0:00:07.9]} 35. g4 {[%clk 0:00:20.3]} 35... g6 {[%clk 0:00:08.2]} 36. Ke3
{[%clk 0:00:19.9]} 36... Ke8 {[%clk 0:00:05.9]} 37. Kf4 {[%clk 0:00:19.4]} 37...
Kd7 {[%clk 0:00:06.4]} 38. Bc5 {[%clk 0:00:18.5]} 38... Ke8 {[%clk 0:00:06.5]}
39. fxg6 {[%clk 0:00:18.4]} 39... hxg6 {[%clk 0:00:04.9]} 40. h4 {[%clk
0:00:19.3]} 40... Kf7 {[%clk 0:00:04.5]} 41. h5 {[%clk 0:00:19]} 41... gxh5
{[%clk 0:00:04.5]} 42. gxh5 {[%clk 0:00:19.9]} 42... Be2 {[%clk 0:00:03.6]} 43.
h6 {[%clk 0:00:18.9]} 43... Bd3 {[%clk 0:00:04.2]} 44. Bd6 {[%clk 0:00:15.9]}
44... Kg6 {[%clk 0:00:04.1]} 45. Be7 {[%clk 0:00:15.7]} 45... Kxh6 {[%clk
0:00:03.7]} 46. Bxf6 {[%clk 0:00:15.8]} 46... Kg6 {[%clk 0:00:04.1]} 47. Ke5
{[%clk 0:00:15.8]} 47... Bc4 {[%clk 0:00:02.1]} 48. Ke6 {[%clk 0:00:12.5]} 48...
Bb3 {[%clk 0:00:03]} 49. Be5 {[%clk 0:00:12.3]} 49... Bc4 {[%clk 0:00:03.3]} 50.
Kd6 {[%clk 0:00:11.5]} 50... Bb3 {[%clk 0:00:04.2]} 51. Kc5 {[%clk 0:00:11.5]}
51... Kf5 {[%clk 0:00:05]} 52. Kb6 {[%clk 0:00:10.7]} 52... Bc4 {[%clk
0:00:05.4]} 53. Ka5 {[%clk 0:00:10.6]} 53... Bb5 {[%clk 0:00:02.4]} 54. Kb4
{[%clk 0:00:09.2]} 54... Ke6 {[%clk 0:00:03]} 55. Kc5 {[%clk 0:00:09.2]} 55...
Kd7 {[%clk 0:00:03.4]} 56. Bf6 {[%clk 0:00:08.2]} 56... Ke6 {[%clk 0:00:03]} 57.
Bg7 {[%clk 0:00:08.4]} 57... Bc4 {[%clk 0:00:03.2]} 58. Be5 {[%clk 0:00:07.9]}
58... Kd7 {[%clk 0:00:03.2]} 59. Kb4 {[%clk 0:00:06.4]} 59... Bb5 {[%clk
0:00:03]} 60. Kc5 {[%clk 0:00:06.8]} 60... Bc4 {[%clk 0:00:02.6]} 61. Kb6 {[%clk
0:00:05.6]} 61... Bb5 {[%clk 0:00:03.5]} 62. Kc5 {[%clk 0:00:05.1]} 62... Bc6
{[%clk 0:00:03.9]} 63. Bg7 {[%clk 0:00:05.6]} 63... Bb7 {[%clk 0:00:03.3]} 64.
Kb6 {[%clk 0:00:03.6]} 64... Kc8 {[%clk 0:00:03.9]} 65. Be5 {[%clk 0:00:02.5]}
1-0

[Event "*** SCC Grand Prix: Titled Tuesday Blitz"]
[Site "Chess.com"]
[Date "2020.09.29"]
[Round "10"]
[White "canary2016"]
[Black "parintele_chess"]
[Result "0-1"]
[WhiteElo "1920"]
[BlackElo "2135"]
[TimeControl "180+1"]
[EndTime "11:57:06 PDT"]
[Termination "parintele_chess won by checkmate"]

1. d4 {[%clk 0:03:00.9]} 1... Nf6 {[%clk 0:02:58.8]} 2. Bf4 {[%clk 0:02:59.2]}
2... d5 {[%clk 0:02:57.4]} 3. e3 {[%clk 0:02:58.5]} 3... g6 {[%clk 0:02:56.1]}
4. Nc3 {[%clk 0:02:55.3]} 4... Bg7 {[%clk 0:02:53.7]} 5. h4 {[%clk 0:02:55.3]}
5... h5 {[%clk 0:02:51.4]} 6. Nf3 {[%clk 0:02:53.9]} 6... O-O {[%clk 0:02:49.2]}
7. Be2 {[%clk 0:02:53.8]} 7... c5 {[%clk 0:02:47.7]} 8. dxc5 {[%clk 0:02:49.2]}
8... Nc6 {[%clk 0:02:41.5]} 9. Qd2 {[%clk 0:02:47.7]} 9... Ne4 {[%clk
0:02:40.1]} 10. Nxe4 {[%clk 0:02:46.4]} 10... dxe4 {[%clk 0:02:40.8]} 11. Nd4
{[%clk 0:02:34.3]} 11... Nxd4 {[%clk 0:02:38.2]} 12. exd4 {[%clk 0:02:32]} 12...
Qxd4 {[%clk 0:02:38]} 13. c3 {[%clk 0:02:11]} 13... Qxc5 {[%clk 0:02:34.1]} 14.
Be3 {[%clk 0:02:10.8]} 14... Qd6 {[%clk 0:02:31.3]} 15. O-O-O {[%clk 0:02:05.2]}
15... Qxd2+ {[%clk 0:02:28]} 16. Rxd2 {[%clk 0:02:00.9]} 16... Be6 {[%clk
0:02:28.1]} 17. Kb1 {[%clk 0:01:56.8]} 17... Rfd8 {[%clk 0:02:26.7]} 18. Rhd1
{[%clk 0:01:48.3]} 18... Rxd2 {[%clk 0:02:24.1]} 19. Rxd2 {[%clk 0:01:47.9]}
19... b6 {[%clk 0:02:22.7]} 20. Bb5 {[%clk 0:01:44.6]} 20... f5 {[%clk
0:02:18.9]} 21. Bg5 {[%clk 0:01:41.3]} 21... Kf7 {[%clk 0:02:17.2]} 22. Bc6
{[%clk 0:01:38.9]} 22... Rc8 {[%clk 0:02:13.9]} 23. Bd7 {[%clk 0:01:36.7]} 23...
Rc7 {[%clk 0:02:12.3]} 24. Bb5 {[%clk 0:01:33.5]} 24... Bf6 {[%clk 0:02:04.7]}
25. Bf4 {[%clk 0:01:32.9]} 25... Rc8 {[%clk 0:01:53.6]} 26. Ba6 {[%clk
0:01:31.2]} 26... Rc5 {[%clk 0:01:49.9]} 27. Rd8 {[%clk 0:01:26.7]} 27... Bxh4
{[%clk 0:01:42.7]} 28. g3 {[%clk 0:01:14.1]} 28... Bf6 {[%clk 0:01:39.2]} 29.
Bb7 {[%clk 0:01:02.9]} 29... Bc4 {[%clk 0:01:30.8]} 30. Be3 {[%clk 0:00:54.6]}
30... Rc7 {[%clk 0:01:27.7]} 31. Bc8 {[%clk 0:00:48.3]} 31... e5 {[%clk
0:01:20.5]} 32. Rd7+ {[%clk 0:00:36.4]} 32... Rxd7 {[%clk 0:01:20.6]} 33. Bxd7
{[%clk 0:00:35.5]} 33... Be6 {[%clk 0:01:21.3]} 34. Bc6 {[%clk 0:00:34.6]} 34...
g5 {[%clk 0:01:19]} 35. Kc2 {[%clk 0:00:32.5]} 35... f4 {[%clk 0:01:18.7]} 36.
gxf4 {[%clk 0:00:32.5]} 36... exf4 {[%clk 0:01:19.6]} 37. Bd2 {[%clk 0:00:32.8]}
37... Bf5 {[%clk 0:01:19.2]} 38. Kd1 {[%clk 0:00:32.1]} 38... Be5 {[%clk
0:01:14.7]} 39. Ke1 {[%clk 0:00:31.9]} 39... g4 {[%clk 0:01:12.6]} 40. Kf1
{[%clk 0:00:31.3]} 40... Kf6 {[%clk 0:01:07.3]} 41. Kg2 {[%clk 0:00:29.5]} 41...
f3+ {[%clk 0:01:01.9]} 42. Kg1 {[%clk 0:00:27.9]} 42... h4 {[%clk 0:01:01.5]}
43. b3 {[%clk 0:00:21.6]} 43... g3 {[%clk 0:01:01.1]} 44. Be3 {[%clk 0:00:19.2]}
44... g2 {[%clk 0:00:59.7]} 45. Bd4 {[%clk 0:00:10.7]} 45... h3 {[%clk 0:00:59]}
46. Bxe5+ {[%clk 0:00:10.3]} 46... Kxe5 {[%clk 0:00:59.9]} 47. c4 {[%clk
0:00:09.9]} 47... Kd4 {[%clk 0:00:58.9]} 48. Bd5 {[%clk 0:00:09.1]} 48... e3
{[%clk 0:00:58.2]} 49. Bxf3 {[%clk 0:00:07.3]} 49... exf2+ {[%clk 0:00:49.8]}
50. Kxf2 {[%clk 0:00:06.8]} 50... Kc3 {[%clk 0:00:48.4]} 51. Bd5 {[%clk
0:00:02.9]} 51... Kb2 {[%clk 0:00:45.1]} 52. b4 {[%clk 0:00:02.6]} 52... Ka3
{[%clk 0:00:26.4]} 53. c5 {[%clk 0:00:02.5]} 53... bxc5 {[%clk 0:00:26.5]} 54.
bxc5 {[%clk 0:00:02.5]} 54... Kb4 {[%clk 0:00:26.5]} 55. c6 {[%clk 0:00:02.9]}
55... Kc5 {[%clk 0:00:26.8]} 56. Bf3 {[%clk 0:00:02.6]} 56... Kd6 {[%clk
0:00:16.3]} 57. Kg1 {[%clk 0:00:02.7]} 57... Kc7 {[%clk 0:00:15.9]} 58. Kh2
{[%clk 0:00:02.8]} 58... a5 {[%clk 0:00:15.8]} 59. a3 {[%clk 0:00:03]} 59... a4
{[%clk 0:00:13.8]} 60. Bd5 {[%clk 0:00:02.8]} 60... Kd6 {[%clk 0:00:12.2]} 61.
Bf3 {[%clk 0:00:02.7]} 61... Ke5 {[%clk 0:00:12.6]} 62. Be2 {[%clk 0:00:02.7]}
62... Kf4 {[%clk 0:00:12.7]} 63. Ba6 {[%clk 0:00:02.6]} 63... Ke3 {[%clk
0:00:12.7]} 64. c7 {[%clk 0:00:02.8]} 64... Kf2 {[%clk 0:00:13]} 65. c8=Q {[%clk
0:00:02.6]} 65... g1=Q# {[%clk 0:00:12.2]} 0-1

[Event "*** SCC Grand Prix: Titled Tuesday Blitz"]
[Site "Chess.com"]
[Date "2020.09.29"]
[Round "10"]
[White "KingHarii"]
[Black "Kildepiotr"]
[Result "1-0"]
[WhiteElo "2723"]
[BlackElo "2578"]
[TimeControl "180+1"]
[EndTime "11:57:07 PDT"]
[Termination "KingHarii won by resignation"]

1. c4 {[%clk 0:03:00.9]} 1... g6 {[%clk 0:02:53.5]} 2. d3 {[%clk 0:03:00.4]}
2... Bg7 {[%clk 0:02:53.6]} 3. Nc3 {[%clk 0:03:00.3]} 3... d6 {[%clk 0:02:51.4]}
4. e4 {[%clk 0:03:00.3]} 4... c5 {[%clk 0:02:51]} 5. Be3 {[%clk 0:03:00.6]} 5...
Nc6 {[%clk 0:02:51.1]} 6. Nge2 {[%clk 0:02:59.2]} 6... Nd4 {[%clk 0:02:49.5]} 7.
Qd2 {[%clk 0:02:56.7]} 7... e6 {[%clk 0:02:48.9]} 8. Bxd4 {[%clk 0:02:49.8]}
8... cxd4 {[%clk 0:02:48.3]} 9. Nb5 {[%clk 0:02:50.1]} 9... Qb6 {[%clk
0:02:41.5]} 10. Qb4 {[%clk 0:02:44.6]} 10... Ke7 {[%clk 0:02:41.2]} 11. a4
{[%clk 0:02:38.8]} 11... a5 {[%clk 0:02:39.3]} 12. Qa3 {[%clk 0:02:34.3]} 12...
Qc5 {[%clk 0:02:35.1]} 13. g3 {[%clk 0:02:31.7]} 13... Bd7 {[%clk 0:02:26.1]}
14. Bg2 {[%clk 0:02:31.7]} 14... Rc8 {[%clk 0:02:25.6]} 15. Qb3 {[%clk
0:02:22.2]} 15... e5 {[%clk 0:02:21.7]} 16. f4 {[%clk 0:02:15.8]} 16... Nf6
{[%clk 0:02:17.9]} 17. h3 {[%clk 0:02:10]} 17... Nh5 {[%clk 0:02:17.5]} 18. O-O
{[%clk 0:02:06.3]} 18... Rhe8 {[%clk 0:02:09.8]} 19. Rf2 {[%clk 0:01:58.4]}
19... Bh6 {[%clk 0:01:58.5]} 20. Kh2 {[%clk 0:01:53.6]} 20... Bxb5 {[%clk
0:01:53.1]} 21. axb5 {[%clk 0:01:53.2]} 21... b6 {[%clk 0:01:52.7]} 22. Raf1
{[%clk 0:01:51.5]} 22... exf4 {[%clk 0:01:46.6]} 23. gxf4 {[%clk 0:01:34.7]}
23... Kf8 {[%clk 0:01:43.5]} 24. f5 {[%clk 0:01:29.1]} 24... Qe5+ {[%clk
0:01:40.1]} 25. Kh1 {[%clk 0:01:29.2]} 25... Rc7 {[%clk 0:01:36.4]} 26. fxg6
{[%clk 0:01:27.3]} 26... hxg6 {[%clk 0:01:36.2]} 27. c5 {[%clk 0:01:26.6]} 27...
f6 {[%clk 0:01:20.5]} 28. c6 {[%clk 0:01:23.2]} 28... Kg7 {[%clk 0:01:16.7]} 29.
Bf3 {[%clk 0:01:10.5]} 29... Ng3+ {[%clk 0:01:09.7]} 30. Nxg3 {[%clk 0:01:10.5]}
30... Qxg3 {[%clk 0:01:09.5]} 31. Bg4 {[%clk 0:01:06.1]} 31... Rf7 {[%clk
0:00:53.3]} 32. Rf3 {[%clk 0:00:56.2]} 32... Qe5 {[%clk 0:00:51.5]} 33. Qc2
{[%clk 0:00:50.6]} 33... Ree7 {[%clk 0:00:48.7]} 34. Bd7 {[%clk 0:00:38]} 34...
Rf8 {[%clk 0:00:36.3]} 35. c7 {[%clk 0:00:36.3]} 35... Rxd7 {[%clk 0:00:36]} 36.
c8=Q {[%clk 0:00:36.2]} 36... Rxc8 {[%clk 0:00:36]} 37. Qxc8 {[%clk 0:00:37.1]}
37... Rf7 {[%clk 0:00:35.8]} 38. Qc6 {[%clk 0:00:30.2]} 38... Qc5 {[%clk
0:00:35.5]} 39. Qxc5 {[%clk 0:00:26]} 39... dxc5 {[%clk 0:00:36.4]} 40. b3
{[%clk 0:00:23.7]} 40... Be3 {[%clk 0:00:34.9]} 41. Kg2 {[%clk 0:00:23.6]} 41...
Bg5 {[%clk 0:00:20.3]} 42. Kg3 {[%clk 0:00:24]} 42... Be3 {[%clk 0:00:19.6]} 43.
Kg4 {[%clk 0:00:23.7]} 43... Rf8 {[%clk 0:00:16.1]} 44. h4 {[%clk 0:00:23.9]}
44... Rf7 {[%clk 0:00:15.9]} 45. Kh3 {[%clk 0:00:24.3]} 45... Rf8 {[%clk
0:00:15.5]} 46. Rg3 {[%clk 0:00:24.8]} 46... Kh6 {[%clk 0:00:15.1]} 47. Rgf3
{[%clk 0:00:24.6]} 47... Kg7 {[%clk 0:00:14.7]} 48. Kg3 {[%clk 0:00:23.5]} 48...
Rf7 {[%clk 0:00:14.2]} 49. Rh1 {[%clk 0:00:23.6]} 49... Re7 {[%clk 0:00:11.9]}
50. h5 {[%clk 0:00:23.7]} 50... gxh5 {[%clk 0:00:11.9]} 51. Rxh5 {[%clk
0:00:24.6]} 51... Kg6 {[%clk 0:00:12]} 52. Rhf5 {[%clk 0:00:23.9]} 52... Bg5
{[%clk 0:00:12]} 53. Kg4 {[%clk 0:00:23.6]} 53... Rh7 {[%clk 0:00:11.7]} 54. Rh3
{[%clk 0:00:24.2]} 54... Rxh3 {[%clk 0:00:11.2]} 55. Kxh3 {[%clk 0:00:25.1]}
55... Kf7 {[%clk 0:00:11.5]} 56. Rd5 {[%clk 0:00:20.8]} 56... Ke6 {[%clk
0:00:11.4]} 57. Kg4 {[%clk 0:00:20.1]} 57... Bd2 {[%clk 0:00:09.9]} 58. Rd8
{[%clk 0:00:19.4]} 58... Bb4 {[%clk 0:00:09.5]} 59. Rb8 {[%clk 0:00:19.3]} 59...
c4 {[%clk 0:00:09.4]} 60. Rxb6+ {[%clk 0:00:19.4]} 60... Ke5 {[%clk 0:00:09.7]}
61. bxc4 {[%clk 0:00:17.9]} 61... a4 {[%clk 0:00:10.1]} 62. Ra6 {[%clk
0:00:18.1]} 62... a3 {[%clk 0:00:10.6]} 63. b6 {[%clk 0:00:18.7]} 63... Kd6
{[%clk 0:00:11]} 64. Kf5 {[%clk 0:00:17.7]} 64... Kc6 {[%clk 0:00:10.9]} 65.
Kxf6 {[%clk 0:00:17.6]} 65... Kb7 {[%clk 0:00:11]} 66. Ra4 {[%clk 0:00:17.8]}
66... Bc5 {[%clk 0:00:11.1]} 67. e5 {[%clk 0:00:17]} 67... Kxb6 {[%clk 0:00:12]}
68. e6 {[%clk 0:00:17.6]} 68... Kc6 {[%clk 0:00:11.6]} 69. e7 {[%clk 0:00:16.8]}
69... Kd7 {[%clk 0:00:11.6]} 70. Kf7 {[%clk 0:00:17.3]} 70... Bxe7 {[%clk
0:00:11.3]} 71. Ra7+ {[%clk 0:00:17.8]} 71... Kc6 {[%clk 0:00:11.7]} 72. Rxe7
{[%clk 0:00:18.7]} 72... a2 {[%clk 0:00:11.8]} 73. Ra7 {[%clk 0:00:18.6]} 1-0

[Event "*** SCC Grand Prix: Titled Tuesday Blitz"]
[Site "Chess.com"]
[Date "2020.09.29"]
[Round "10"]
[White "GMKrikor"]
[Black "azikom"]
[Result "1/2-1/2"]
[WhiteElo "2802"]
[BlackElo "2659"]
[TimeControl "180+1"]
[EndTime "11:57:09 PDT"]
[Termination "Game drawn by repetition"]

1. e4 {[%clk 0:03:00.9]} 1... e5 {[%clk 0:02:59.7]} 2. Bc4 {[%clk 0:03:00.6]}
2... Nc6 {[%clk 0:02:59.4]} 3. Nc3 {[%clk 0:02:59.8]} 3... Bc5 {[%clk
0:02:57.2]} 4. Qg4 {[%clk 0:02:59.3]} 4... g6 {[%clk 0:02:49.2]} 5. Qg3 {[%clk
0:02:58.9]} 5... d6 {[%clk 0:02:48.4]} 6. Nge2 {[%clk 0:02:49]} 6... Be6 {[%clk
0:02:47.4]} 7. Bxe6 {[%clk 0:02:40]} 7... fxe6 {[%clk 0:02:47]} 8. a3 {[%clk
0:02:24.2]} 8... a6 {[%clk 0:02:45.2]} 9. d3 {[%clk 0:02:23.5]} 9... Nf6 {[%clk
0:02:36.5]} 10. O-O {[%clk 0:02:22.6]} 10... Nh5 {[%clk 0:02:34.3]} 11. Qh3
{[%clk 0:02:16]} 11... Qd7 {[%clk 0:02:33]} 12. Be3 {[%clk 0:02:14]} 12... O-O
{[%clk 0:02:24.6]} 13. Bxc5 {[%clk 0:02:11.6]} 13... dxc5 {[%clk 0:02:24.5]} 14.
Qg4 {[%clk 0:01:38.2]} 14... b6 {[%clk 0:02:14.3]} 15. g3 {[%clk 0:01:34.8]}
15... Rae8 {[%clk 0:02:12.1]} 16. Kg2 {[%clk 0:01:25.4]} 16... Qd6 {[%clk
0:01:58.4]} 17. Rae1 {[%clk 0:01:19.7]} 17... a5 {[%clk 0:01:57.6]} 18. f4
{[%clk 0:01:08.4]} 18... exf4 {[%clk 0:01:57.5]} 19. gxf4 {[%clk 0:01:08.7]}
19... Nd4 {[%clk 0:01:56.9]} 20. Nxd4 {[%clk 0:01:04.8]} 20... Qxd4 {[%clk
0:01:55.4]} 21. Re2 {[%clk 0:00:54.1]} 21... c4 {[%clk 0:01:52.1]} 22. Rf3
{[%clk 0:00:52.1]} 22... cxd3 {[%clk 0:01:51.9]} 23. cxd3 {[%clk 0:00:52.7]}
23... c5 {[%clk 0:01:49.4]} 24. Ref2 {[%clk 0:00:50.7]} 24... c4 {[%clk
0:01:46.8]} 25. dxc4 {[%clk 0:00:51.1]} 25... Qxc4 {[%clk 0:01:46.2]} 26. Re3
{[%clk 0:00:44.1]} 26... b5 {[%clk 0:01:45.2]} 27. Ne2 {[%clk 0:00:39.9]} 27...
b4 {[%clk 0:01:43.9]} 28. axb4 {[%clk 0:00:39.6]} 28... axb4 {[%clk 0:01:43.5]}
29. Ng3 {[%clk 0:00:38.4]} 29... Nxg3 {[%clk 0:01:40.7]} 30. hxg3 {[%clk
0:00:33.9]} 30... Rf7 {[%clk 0:01:39.9]} 31. Qe2 {[%clk 0:00:32.1]} 31... Qxe2
{[%clk 0:01:36.3]} 32. Rfxe2 {[%clk 0:00:32.1]} 32... Rc7 {[%clk 0:01:36.4]} 33.
e5 {[%clk 0:00:31]} 33... Rd8 {[%clk 0:01:34.1]} 34. Re4 {[%clk 0:00:31.3]}
34... b3 {[%clk 0:01:30.5]} 35. R4e3 {[%clk 0:00:32]} 35... Rc2 {[%clk
0:01:28.6]} 36. Kf3 {[%clk 0:00:32.7]} 36... Rb8 {[%clk 0:01:21.7]} 37. Rd3
{[%clk 0:00:32.3]} 37... h5 {[%clk 0:01:08.1]} 38. Ke3 {[%clk 0:00:31.9]} 38...
Kf7 {[%clk 0:01:06.4]} 39. Rd7+ {[%clk 0:00:28.5]} 39... Kf8 {[%clk 0:01:06.2]}
40. Rd3 {[%clk 0:00:24.1]} 40... Ke7 {[%clk 0:01:01.5]} 41. Red2 {[%clk
0:00:24.6]} 41... Rc7 {[%clk 0:00:59.4]} 42. Rd6 {[%clk 0:00:22.8]} 42... Rbb7
{[%clk 0:00:59]} 43. R6d3 {[%clk 0:00:22.6]} 43... Rc1 {[%clk 0:00:57.8]} 44.
Kf3 {[%clk 0:00:21.5]} 44... Rf1+ {[%clk 0:00:57.3]} 45. Kg2 {[%clk 0:00:21.3]}
45... Rb1 {[%clk 0:00:57.1]} 46. g4 {[%clk 0:00:20.8]} 46... hxg4 {[%clk
0:00:57]} 47. Kg3 {[%clk 0:00:21.5]} 47... Rg1+ {[%clk 0:00:57.5]} 48. Kf2
{[%clk 0:00:21.8]} 48... Rc1 {[%clk 0:00:57.2]} 49. Kg3 {[%clk 0:00:22.5]} 49...
Rg1+ {[%clk 0:00:57.1]} 50. Kh4 {[%clk 0:00:17.1]} 50... Kf7 {[%clk 0:00:53.9]}
51. Rd7+ {[%clk 0:00:15.4]} 51... Rxd7 {[%clk 0:00:53.7]} 52. Rxd7+ {[%clk
0:00:16.3]} 52... Ke8 {[%clk 0:00:53]} 53. Rb7 {[%clk 0:00:16]} 53... g3 {[%clk
0:00:51.6]} 54. Kh3 {[%clk 0:00:16.4]} 54... g2 {[%clk 0:00:49.6]} 55. Rxb3
{[%clk 0:00:12.1]} 55... Rf1 {[%clk 0:00:49.6]} 56. Kxg2 {[%clk 0:00:12.5]}
56... Rxf4 {[%clk 0:00:49.6]} 57. Rb6 {[%clk 0:00:10.8]} 57... Kd7 {[%clk
0:00:49.2]} 58. Rb7+ {[%clk 0:00:07.9]} 58... Kc6 {[%clk 0:00:48.8]} 59. Rg7
{[%clk 0:00:07.4]} 59... Rg4+ {[%clk 0:00:47]} 60. Kf3 {[%clk 0:00:08.1]} 60...
Rg5 {[%clk 0:00:47.2]} 61. Kf4 {[%clk 0:00:08.6]} 61... Rg2 {[%clk 0:00:47.1]}
62. Kf3 {[%clk 0:00:06.6]} 62... Rxb2 {[%clk 0:00:46.1]} 63. Rxg6 {[%clk
0:00:07]} 63... Kd5 {[%clk 0:00:46.7]} 64. Ke3 {[%clk 0:00:07.6]} 64... Kxe5
{[%clk 0:00:45.8]} 65. Rg5+ {[%clk 0:00:08]} 65... Kf6 {[%clk 0:00:45.9]} 66.
Rh5 {[%clk 0:00:08.9]} 66... e5 {[%clk 0:00:45.2]} 67. Rh6+ {[%clk 0:00:08.8]}
67... Kf5 {[%clk 0:00:45.4]} 68. Rh5+ {[%clk 0:00:09.4]} 68... Ke6 {[%clk
0:00:45.8]} 69. Rh6+ {[%clk 0:00:10.1]} 69... Kd5 {[%clk 0:00:46.2]} 70. Kd3
{[%clk 0:00:10.7]} 70... Rb3+ {[%clk 0:00:46.5]} 71. Ke2 {[%clk 0:00:10.7]}
71... Ra3 {[%clk 0:00:47.1]} 72. Rh4 {[%clk 0:00:10]} 72... e4 {[%clk
0:00:47.1]} 73. Rh8 {[%clk 0:00:09.8]} 73... Ra2+ {[%clk 0:00:46.6]} 74. Ke3
{[%clk 0:00:10]} 74... Ra3+ {[%clk 0:00:47.1]} 75. Ke2 {[%clk 0:00:10.5]} 75...
Ra2+ {[%clk 0:00:47.7]} 76. Ke3 {[%clk 0:00:10.7]} 76... Ra3+ {[%clk 0:00:48.3]}
77. Ke2 {[%clk 0:00:11.3]} 1/2-1/2